bitfinex/quotes_ETHUSD_20220112
["timestamp","ask_amount","ask_price","bid_price","bid_amount"]
[1641959050123,0.29582603,3240.5,3239.7,5.45]
[1641959050325,0.29582603,3240.5,3239.7,5.45170527]
[1641959050681,0.7740648,3240.4,3239.7,5.45170527]
[1641959051076,0.00170527,3240.3,3239.7,5.45170527]
[1641959051478,0.00113685,3240.2,3239.7,5.45170527]
[1641959051878,0.00170527,3240.3,3239.7,5.45170527]
[1641959052276,0.00113685,3240.2,3239.7,5.45170527]
[1641959056525,0.00113685,3240.2,3239.7,0.00170527]
[1641959057130,4.0898814,3240.2,3239.7,0.00170527]
[1641959057329,3.83778241,3240.2,3239.7,0.00170527]
[1641959057526,3.84197871,3240.2,3239.7,0.00170527]
[1641959058491,0.00113685,3240.2,3239.7,0.00170527]
[1641959059589,1.00113685,3240.2,3239.7,0.00170527]
[1641959059791,1.77298635,3240.2,3239.7,0.00170527]
[1641959060593,0.77298635,3240.2,3239.7,0.00170527]
[1641959060991,0.00113685,3240.2,3239.7,0.00170527]
[1641959066272,0.77297185,3240.2,3239.7,0.00170527]
[1641959069627,1.77297185,3240.2,3239.7,0.00170527]
[1641959070032,0.77297185,3240.2,3239.7,0.00170527]
[1641959082590,0.771835,3240.2,3239.7,0.00170527]
[1641959086833,0.771835,3240.2,3239.6,1.14913685]
[1641959087634,1.0,3240.3,3239.6,1.14913685]
[1641959087835,1.3,3240.3,3239.6,1.14913685]
[1641959088036,0.00113685,3240.2,3239.6,1.14913685]
[1641959088478,0.00170527,3240.3,3239.6,1.14913685]
[1641959090279,3.76914852,3240.3,3239.6,1.14913685]
[1641959090477,1.0,3240.2,3239.6,1.14913685]
[1641959091678,2.07353487,3240.3,3239.6,1.14913685]
[1641959091923,1.07353487,3240.3,3239.6,1.14913685]
[1641959092123,2.07353487,3240.3,3239.6,1.14913685]
[1641959094727,0.7718747,3240.0,3239.6,1.14913685]
[1641959096775,3.78026657,3239.9,3239.5,3.05284212]
[1641959096974,0.445,3239.8,3239.5,3.05284212]
[1641959097173,4.24226221,3239.7,3239.6,0.00227369]
[1641959097372,4.98726221,3239.7,3239.6,0.00227369]
[1641959097573,6.28726221,3239.7,3239.6,0.00227369]
[1641959097777,5.98726221,3239.7,3239.6,0.00227369]
[1641959098683,6.75932221,3239.7,3239.6,0.00227369]
[1641959098980,7.53137221,3239.7,3239.6,0.00227369]
[1641959099183,7.48137221,3239.7,3239.6,0.00227369]
[1641959101230,3.8,3239.6,3239.0,0.75]
[1641959101425,3.8,3239.6,3238.5,4.5893]
[1641959101426,0.77216,3239.3,3238.5,4.5893]
[1641959101626,5.3705121,3239.2,3239.1,0.00284212]
[1641959101827,5.6705121,3239.2,3239.1,0.00284212]
[1641959102029,6.6705121,3239.2,3239.1,0.00284212]
[1641959103033,8.2149321,3239.2,3239.1,0.00284212]
[1641959103682,7.4426621,3239.2,3239.1,0.00284212]
[1641959104083,2.51715,3239.2,3239.1,0.00284212]
[1641959105285,1.446939,3239.2,3239.1,0.00284212]
[1641959105682,0.77215,3239.2,3239.1,0.00284212]
[1641959106283,0.7721683,3239.3,3239.1,0.00284212]
[1641959109165,0.7721683,3239.3,3239.2,0.58259017]
[1641959109361,0.7721683,3239.3,3239.2,1.16518034]
[1641959109561,0.7721683,3239.3,3239.2,1.16745404]
[1641959110563,1.0721683,3239.3,3239.2,1.16745404]
[1641959111278,1.0721683,3239.3,3239.2,4.26745404]
[1641959116325,4.8474908,3239.3,3239.2,4.26745404]
[1641959116526,5.8474908,3239.3,3239.2,4.26745404]
[1641959117326,6.2924908,3239.3,3239.2,4.26745404]
[1641959117527,6.5924908,3239.3,3239.2,4.26745404]
[1641959119185,6.5924908,3239.3,3239.2,2.93355768]
[1641959119384,6.5924908,3239.3,3239.2,1.6160457]
[1641959120188,6.60043175,3239.3,3239.2,1.6160457]
[1641959120792,2.82510925,3239.3,3239.2,1.6160457]
[1641959121792,6.15099385,3239.3,3239.2,1.6160457]
[1641959122031,5.85099385,3239.3,3239.2,1.6160457]
[1641959122531,2.22510925,3239.3,3239.2,1.6160457]
[1641959124635,5.88971066,3239.3,3239.2,1.6160457]
[1641959126074,2.22510925,3239.3,3239.2,1.6160457]
[1641959130745,1.22510925,3239.3,3239.2,1.6160457]
[1641959133778,4.89582161,3239.3,3239.2,1.6160457]
[1641959134980,5.89582161,3239.3,3239.2,1.6160457]
[1641959136783,2.22510925,3239.3,3239.2,1.6160457]
[1641959138328,1.22510925,3239.3,3239.2,1.6160457]
[1641959150695,1.22510925,3239.3,3239.2,0.8438774]
[1641959150696,4.79716925,3239.3,3239.2,0.8438774]
[1641959150886,8.43345375,3239.3,3239.2,0.8438774]
[1641959151086,9.73345375,3239.3,3239.2,0.8438774]
[1641959151285,6.09716925,3239.3,3239.2,0.8438774]
[1641959151685,9.41774153,3239.3,3239.2,0.8438774]
[1641959152234,9.71774153,3239.3,3239.2,0.8438774]
[1641959152835,9.71774153,3239.3,3238.6,1.1468]
[1641959152836,5.05,3239.2,3238.6,1.1468]
[1641959153138,0.38193257,3238.7,3238.6,1.1468]
[1641959153340,4.02627446,3238.7,3237.5,1.48275157]
[1641959153538,4.02627446,3238.7,3238.6,0.00341054]
[1641959153940,0.38193257,3238.7,3238.6,0.00341054]
[1641959154141,0.38193257,3238.7,3238.1,0.00625265]
[1641959154347,2.3168622,3238.5,3238.1,0.00625265]
[1641959155143,2.3168622,3238.5,3238.0,0.00682108]
[1641959160145,0.00794095,3238.2,3238.0,0.00682108]
[1641959162155,0.00794095,3238.2,3238.0,3.10682108]
[1641959162554,0.00794095,3238.2,3238.1,4.55625265]
[1641959164992,0.00794095,3238.2,3238.1,0.00625265]
[1641959165598,0.00794095,3238.2,3238.1,2.70625265]
[1641959165795,0.00794095,3238.2,3238.1,0.00625265]
[1641959166695,0.00794095,3238.2,3238.1,5.15625265]
[1641959170145,0.00794095,3238.2,3238.1,0.00625265]
[1641959170543,3.63414458,3238.2,3238.1,0.00625265]
[1641959170807,0.00794095,3238.2,3238.1,0.00625265]
[1641959171404,1.24745937,3238.2,3238.1,0.00625265]
[1641959172602,1.24745937,3238.2,3238.1,3.45625265]
[1641959174440,0.00794095,3238.2,3238.1,3.45625265]
[1641959175848,0.00794095,3238.2,3238.1,0.00625265]
[1641959176046,1.11864095,3238.2,3238.1,0.00625265]
[1641959176246,3.40855095,3238.2,3238.1,0.00625265]
[1641959176450,5.95346095,3238.2,3238.0,0.01351305]
[1641959176646,7.79836945,3238.2,3238.0,0.01351305]
[1641959176856,0.77245,3238.1,3238.0,0.01351305]
[1641959177047,1.21745,3238.1,3238.0,0.01351305]
[1641959177447,1.21745,3238.1,3237.3,1.1681]
[1641959177448,3.85,3238.0,3237.3,1.1681]
[1641959177648,3.09041,3237.7,3237.3,1.1681]
[1641959177850,0.445,3237.6,3237.4,0.00397897]
[1641959178184,1.745,3237.6,3237.4,0.00397897]
[1641959178483,4.24261726,3237.5,3237.4,0.00397897]
[1641959178684,4.68761726,3237.5,3237.4,0.00397897]
[1641959178887,5.68761726,3237.5,3237.4,0.00397897]
[1641959179086,2.86983403,3237.5,3237.0,0.00625266]
[1641959179490,1.56983403,3237.5,3237.0,0.00625266]
[1641959180087,1.57777498,3237.5,3237.0,0.00625266]
[1641959180693,2.35027258,3237.5,3237.0,0.00625266]
[1641959181288,1.54512,3237.4,3237.0,0.00625266]
[1641959181488,2.29012,3237.4,3237.0,0.00625266]
[1641959181688,1.99012,3237.4,3237.0,0.00625266]
[1641959182744,0.7725525,3237.2,3237.0,0.00625266]
[1641959183143,1.03174265,3237.2,3237.0,0.00625266]
[1641959183545,1.03174265,3237.2,3237.0,3.1]
[1641959183945,1.03174265,3237.2,3237.1,0.00568424]
[1641959186290,0.25919015,3237.2,3237.1,5.65568424]
[1641959186493,0.25919015,3237.2,3237.1,8.82555428]
[1641959186696,0.25919015,3237.2,3237.1,8.83162521]
[1641959187295,0.25919015,3237.2,3237.1,8.883111]
[1641959187492,0.25919015,3237.2,3237.1,5.65568424]
[1641959190135,0.2671311,3237.2,3237.1,5.65568424]
[1641959202394,1.6016385,3237.2,3237.1,5.65568424]
[1641959208488,1.6016385,3237.2,3237.1,8.84746639]
[1641959213958,1.6016385,3237.2,3237.1,8.84178215]
[1641959215159,1.6016385,3237.2,3237.1,5.65]
[1641959221468,1.6016385,3237.2,3237.1,9.04699531]
[1641959222567,1.34244835,3237.2,3237.1,9.04699531]
[1641959223797,1.34244835,3237.2,3237.1,5.65]
[1641959230686,1.34244835,3237.2,3237.0,3.1]
[1641959240503,1.34244835,3237.2,3237.1,6.78210327]
[1641959240703,1.34244835,3237.2,3237.1,6.77710695]
[1641959253797,1.34244835,3237.2,3237.1,3.55]
[1641959254601,1.34244835,3237.2,3237.1,6.4]
[1641959255804,1.34244835,3237.2,3237.1,3.55]
[1641959256200,1.34244835,3237.2,3237.0,3.1]
[1641959275892,1.34244835,3237.2,3237.0,4.38826006]
[1641959276091,1.34244835,3237.2,3237.1,11.41502807]
[1641959276892,1.34244835,3237.2,3237.1,12.41502807]
[1641959277092,1.34244835,3237.2,3237.1,11.41502807]
[1641959278295,1.34244835,3237.2,3237.1,8.95]
[1641959278495,1.34244835,3237.2,3237.1,12.8274582]
[1641959281548,1.34244835,3237.2,3237.1,13.1274582]
[1641959281749,0.00794095,3237.2,3237.1,12.8274582]
[1641959281949,0.00794095,3237.2,3237.1,14.0415582]
[1641959282651,1.12002624,3237.2,3237.1,14.0415582]
[1641959282849,1.12002624,3237.2,3237.1,12.8274582]
[1641959285097,1.12002624,3237.2,3237.1,8.95]
[1641959285297,1.12002624,3237.2,3237.1,12.13182902]
[1641959285497,1.12002624,3237.2,3237.1,8.95]
[1641959285895,1.12002624,3237.2,3237.0,4.41826006]
[1641959286095,1.12002624,3237.2,3237.1,3.36094049]
[1641959286296,1.12002624,3237.2,3237.1,7.11094049]
[1641959286696,1.12002624,3237.2,3237.1,3.75]
[1641959286952,1.12002624,3237.2,3237.0,3.13]
[1641959299409,1.12002624,3237.2,3237.1,6.90974428]
[1641959299607,1.12002624,3237.2,3237.1,3.7]
[1641959299808,1.12002624,3237.2,3237.1,7.40893978]
[1641959300008,1.12002624,3237.2,3237.1,8.95]
[1641959300408,1.12002624,3237.2,3237.1,12.65893978]
[1641959300609,1.12002624,3237.2,3237.1,8.95]
[1641959300808,1.12002624,3237.2,3237.1,3.7]
[1641959301007,1.12002624,3237.2,3237.1,6.6]
[1641959301608,1.12002624,3237.2,3237.1,10.03192236]
[1641959302446,1.12002624,3237.2,3237.1,3.7]
[1641959302843,1.12002624,3237.2,3237.0,3.13]
[1641959311945,1.12002624,3237.2,3237.1,6.08327911]
[1641959312146,1.12002624,3237.2,3237.1,5.93124732]
[1641959313602,1.12002624,3237.2,3237.1,2.75]
[1641959313903,1.12002624,3237.2,3237.1,5.91542574]
[1641959315105,1.12002624,3237.2,3237.1,5.91235918]
[1641959315304,1.12002624,3237.2,3237.1,2.75]
[1641959316964,1.12002624,3237.2,3237.1,5.4]
[1641959317352,1.12002624,3237.2,3237.1,8.61419211]
[1641959317555,1.12002624,3237.2,3237.1,8.56716299]
[1641959317754,1.12002624,3237.2,3237.1,5.4]
[1641959318155,1.12002624,3237.2,3237.1,8.55939727]
[1641959319566,1.12002624,3237.2,3237.1,8.58598143]
[1641959319761,1.12002624,3237.2,3237.1,5.4]
[1641959319964,1.12002624,3237.2,3237.1,8.55464675]
[1641959320162,1.12002624,3237.2,3237.1,8.55680249]
[1641959320563,1.12002624,3237.2,3237.1,5.4]
[1641959321592,1.12002624,3237.2,3237.1,2.75]
[1641959327643,1.12002624,3237.2,3237.1,6.05945911]
[1641959328909,1.12002624,3237.2,3237.1,6.08534511]
[1641959329708,1.12002624,3237.2,3237.1,5.5]
[1641959329908,1.12002624,3237.2,3237.1,8.66264067]
[1641959330112,1.12002624,3237.2,3237.1,8.67350195]
[1641959332044,1.12002624,3237.2,3237.1,2.75]
[1641959335693,1.12002624,3237.2,3237.1,5.5]
[1641959336494,1.12002624,3237.2,3237.1,8.69117523]
[1641959336694,1.12002624,3237.2,3237.1,5.5]
[1641959337496,1.12002624,3237.2,3237.1,2.75]
[1641959339002,1.12002624,3237.2,3237.0,3.13]
[1641959340850,1.42002624,3237.2,3237.0,3.13]
[1641959342348,1.42002624,3237.2,3237.0,3.63]
[1641959342549,2.42002624,3237.2,3237.0,3.63]
[1641959345216,1.92002624,3237.2,3237.0,3.63]
[1641959345416,1.0,3237.2,3237.0,3.63]
[1641959347055,1.3,3237.2,3237.0,3.63]
[1641959347458,0.8,3237.2,3237.0,3.63]
[1641959349362,1.1,3237.2,3237.0,3.63]
[1641959352509,2.24862151,3237.2,3237.0,3.63]
[1641959355347,3.63499362,3237.1,3237.0,3.63]
[1641959355549,4.63499362,3237.1,3237.0,3.63]
[1641959355747,4.63499362,3237.1,3237.0,3.63625266]
[1641959356752,1.0,3237.1,3237.0,3.63625266]
[1641959357151,2.44862151,3237.2,3237.0,3.63625266]
[1641959357552,2.44862151,3237.2,3237.1,0.00568424]
[1641959357753,6.14248349,3237.2,3237.1,0.00568424]
[1641959358802,2.44862151,3237.2,3237.1,0.00568424]
[1641959359405,1.3,3237.2,3237.1,0.00568424]
[1641959359903,1.3,3237.2,3237.0,3.63]
[1641959359904,0.56238676,3237.1,3237.0,3.63]
[1641959370249,4.13185659,3237.1,3237.0,3.63]
[1641959370450,6.42241659,3237.1,3237.0,3.6]
[1641959370650,7.42241659,3237.1,3237.0,3.6]
[1641959373057,3.85294676,3237.1,3237.0,3.6]
[1641959373910,1.86238676,3237.1,3237.0,3.6]
[1641959374111,0.86238676,3237.1,3237.0,3.6]
[1641959374312,1.86238676,3237.1,3237.0,3.6]
[1641959374909,0.86238676,3237.1,3237.0,3.6]
[1641959375110,1.86238676,3237.1,3237.0,3.6]
[1641959375311,0.86238676,3237.1,3237.0,3.6]
[1641959375609,1.86238676,3237.1,3237.0,3.6]
[1641959375810,0.86238676,3237.1,3237.0,3.6]
[1641959376010,1.86238676,3237.1,3237.0,3.6]
[1641959376211,0.86238676,3237.1,3237.0,3.6]
[1641959376510,1.86238676,3237.1,3237.0,3.6]
[1641959376712,0.86238676,3237.1,3237.0,3.6]
[1641959376966,1.86238676,3237.1,3237.0,3.6]
[1641959378561,0.86238676,3237.1,3237.0,3.6]
[1641959378760,1.86238676,3237.1,3237.0,3.6]
[1641959378959,1.56238676,3237.1,3237.0,3.6]
[1641959379161,0.56238676,3237.1,3237.0,3.6]
[1641959379362,1.56238676,3237.1,3237.0,3.6]
[1641959379962,0.56238676,3237.1,3237.0,3.6]
[1641959380161,1.56238676,3237.1,3237.0,3.6]
[1641959380362,0.56238676,3237.1,3237.0,3.6]
[1641959380562,1.86238676,3237.1,3237.0,3.6]
[1641959380802,0.86238676,3237.1,3237.0,3.6]
[1641959381002,1.86238676,3237.1,3237.0,3.6]
[1641959381203,0.86238676,3237.1,3237.0,3.6]
[1641959381401,1.86238676,3237.1,3237.0,3.6]
[1641959382001,0.86238676,3237.1,3237.0,3.6]
[1641959382304,1.86238676,3237.1,3237.0,3.6]
[1641959382501,0.86238676,3237.1,3237.0,3.6]
[1641959382701,1.86238676,3237.1,3237.0,3.6]
[1641959382902,0.86238676,3237.1,3237.0,3.6]
[1641959383101,2.31448676,3237.1,3237.0,3.6]
[1641959383307,1.31448676,3237.1,3237.0,3.6]
[1641959383507,2.31448676,3237.1,3237.0,3.6]
[1641959384981,2.01448676,3237.1,3237.0,3.6]
[1641959385480,2.31448676,3237.1,3237.0,3.6]
[1641959412912,9.61845477,3237.1,3237.0,3.6]
[1641959413511,9.61845477,3237.1,3237.0,2.26520387]
[1641959414112,6.16845477,3237.1,3237.0,2.26520387]
[1641959414960,5.92305477,3237.1,3237.0,2.26520387]
[1641959419212,6.36805477,3237.1,3237.0,2.26520387]
[1641959420113,5.80566801,3237.1,3237.0,1.70281711]
[1641959421316,0.77274,3236.8,3236.5,0.09]
[1641959421516,0.745,3236.7,3236.5,0.09]
[1641959421714,0.8971,3236.7,3236.6,0.00284212]
[1641959421971,1.8971,3236.7,3236.6,0.00284212]
[1641959432060,1.8971,3236.7,3236.6,3.10284212]
[1641959434709,1.8971,3236.7,3236.6,3.04084212]
[1641959434909,0.8971,3236.7,3236.6,3.04084212]
[1641959435111,1.8971,3236.7,3236.6,3.04084212]
[1641959435414,0.5971,3236.7,3236.6,3.04084212]
[1641959442405,0.5971,3236.7,3236.6,1.92702595]
[1641959443010,0.8971,3236.7,3236.6,1.92702595]
[1641959444466,0.4521,3236.7,3236.6,1.92702595]
[1641959447559,0.1521,3236.7,3236.6,1.92702595]
[1641959447759,0.4521,3236.7,3236.6,1.92702595]
[1641959448611,3.92961946,3236.7,3236.6,1.92702595]
[1641959449012,1.4521,3236.7,3236.6,1.92702595]
[1641959450413,0.4521,3236.7,3236.6,1.92702595]
[1641959450613,1.4521,3236.7,3236.6,1.92702595]
[1641959450813,0.4521,3236.7,3236.6,1.92702595]
[1641959451972,0.1521,3236.7,3236.6,1.92702595]
[1641959453666,0.1521,3236.7,3236.5,1.37085155]
[1641959454270,0.1521,3236.7,3236.5,0.09]
[1641959455474,0.4521,3236.8,3236.5,0.09]
[1641959455725,0.1521,3236.8,3236.5,0.09]
[1641959456727,1.6975,3236.8,3236.5,0.09]
[1641959457130,3.77022,3236.8,3236.5,0.09]
[1641959458034,0.35891382,3236.7,3236.5,0.09]
[1641959458730,0.1521,3236.6,3236.5,0.09]
[1641959465910,3.80139736,3236.6,3236.5,0.09]
[1641959466110,4.80139736,3236.6,3236.5,0.09]
[1641959467156,1.1521,3236.6,3236.5,0.09]
[1641959467556,0.1521,3236.6,3236.5,0.09]
[1641959470918,4.17434489,3236.6,3236.3,0.14735637]
[1641959471117,1.1432429,3236.2,3235.7,6.9713]
[1641959471315,1.0729,3236.1,3235.7,3.8049]
[1641959471614,1.225,3236.1,3235.7,3.8049]
[1641959472016,1.225,3236.1,3235.6,0.93306005]
[1641959472420,1.225,3236.1,3235.7,0.00511581]
[1641959472716,1.225,3236.1,3235.6,0.93306005]
[1641959472717,2.3186833,3236.0,3235.6,0.87617586]
[1641959473118,3.32038857,3236.0,3235.6,0.87617586]
[1641959474558,0.1521,3235.9,3235.6,0.87617586]
[1641959489759,0.1224,3235.9,3235.6,0.87617586]
[1641959495825,0.1224,3235.9,3235.8,1.53022245]
[1641959497557,0.1224,3235.9,3235.8,0.41752494]
[1641959497757,0.1224,3235.9,3235.6,0.87617586]
[1641959498762,0.1224,3235.9,3235.8,4.59995664]
[1641959503517,0.1224,3236.2,3235.8,4.59995664]
[1641959503716,0.1224,3236.2,3235.8,1.34995664]
[1641959503915,0.12524212,3236.2,3235.8,1.34995664]
[1641959505566,0.12524212,3236.2,3236.1,4.25918368]
[1641959505768,0.12524212,3236.2,3236.1,7.25918368]
[1641959506768,0.12524212,3236.2,3236.1,9.95115524]
[1641959506968,0.12524212,3236.2,3236.1,9.91260749]
[1641959507167,0.12524212,3236.2,3236.1,7.25918368]
[1641959507568,0.12524212,3236.2,3236.1,4.25918368]
[1641959511734,0.12524212,3236.2,3236.1,7.05918368]
[1641959512757,0.12524212,3236.2,3236.1,4.25918368]
[1641959513760,0.12524212,3236.2,3236.1,8.10918368]
[1641959514760,1.23766828,3236.2,3236.1,8.10918368]
[1641959516910,1.23766828,3236.2,3236.1,4.25918368]
[1641959518615,1.23766828,3236.2,3236.1,6.90918368]
[1641959519762,1.23766828,3236.2,3236.1,4.25918368]
[1641959520567,1.23766828,3236.2,3236.1,7.15918368]
[1641959522972,1.23766828,3236.2,3236.1,4.25918368]
[1641959524813,1.23766828,3236.2,3236.1,3.33117274]
[1641959525223,1.23766828,3236.2,3236.1,6.43117274]
[1641959531010,1.23766828,3236.2,3236.1,3.68117274]
[1641959535971,1.23482616,3236.2,3236.1,3.68117274]
[1641959538075,1.35858416,3236.2,3236.1,3.68117274]
[1641959540836,0.246158,3236.2,3236.1,3.68117274]
[1641959550067,1.11224359,3236.8,3236.2,8.95]
[1641959550268,1.11224359,3236.8,3236.3,3.07874651]
[1641959550473,0.00568424,3236.7,3236.3,4.07874651]
[1641959550669,0.00568424,3236.7,3236.3,1.0]
[1641959550870,0.00511581,3236.6,3236.4,3.97253931]
[1641959551077,1.33425331,3237.8,3236.6,8.95]
[1641959551270,0.123733,3236.8,3236.7,22.8930287]
[1641959551471,0.00341055,3237.2,3236.7,24.4930287]
[1641959551670,0.00341055,3237.2,3236.9,18.14]
[1641959551869,0.00284212,3237.1,3237.0,3.5786287]
[1641959552074,0.00284212,3237.1,3237.0,4.5786287]
[1641959552273,0.00284212,3237.1,3237.0,9.1244004]
[1641959553319,0.00284212,3237.1,3237.0,6.739994]
[1641959553521,0.00284212,3237.1,3237.0,5.967794]
[1641959554225,0.00284212,3237.1,3237.0,9.617794]
[1641959554425,0.00284212,3237.1,3237.0,13.06505525]
[1641959555425,0.00284212,3237.1,3237.0,15.40320946]
[1641959555632,0.00284212,3237.1,3237.0,17.50320946]
[1641959556127,0.00284212,3237.1,3237.0,14.05594821]
[1641959556625,0.00284212,3237.1,3237.0,12.717794]
[1641959558677,0.00284212,3237.1,3237.0,9.067794]
[1641959571731,0.00284212,3237.1,3237.0,4.617794]
[1641959572982,0.00284212,3237.1,3237.0,7.567794]
[1641959573585,0.00284212,3237.1,3237.0,3.1]
[1641959582174,0.12373,3237.2,3237.0,3.1]
[1641959584628,1.1121174,3237.1,3237.0,3.1]
[1641959589872,1.1121174,3237.1,3237.0,2.519905]
[1641959594574,1.4121174,3237.1,3237.0,1.59213994]
[1641959594869,5.07976753,3237.1,3237.0,1.59213994]
[1641959595170,5.37976753,3237.1,3237.0,1.59213994]
[1641959595367,5.82476753,3237.1,3237.0,1.59213994]
[1641959595567,2.1571174,3237.1,3237.0,1.59213994]
[1641959595968,5.67903754,3237.1,3237.0,1.59213994]
[1641959599425,6.67903754,3237.1,3237.0,1.59213994]
[1641959599624,13.37903754,3237.1,3237.0,0.66411829]
[1641959600528,14.46903007,3237.1,3237.0,0.66411829]
[1641959601626,10.94710993,3237.1,3237.0,0.66411829]
[1641959601826,20.04700083,3237.1,3237.0,0.66411829]
[1641959602269,8.95,3237.0,3235.3,4.2698]
[1641959602470,0.3,3236.2,3235.3,4.2698]
[1641959602667,0.445,3236.1,3235.3,4.2698]
[1641959602868,0.445,3236.1,3235.5,1.16822791]
[1641959603070,1.11255057,3235.9,3235.5,1.16822791]
[1641959603273,0.445,3235.8,3235.5,1.16822791]
[1641959603674,1.21787,3235.8,3235.5,1.16822791]
[1641959603873,1.21787,3235.8,3235.3,1.2206]
[1641959606222,1.21787,3235.8,3235.6,3.97617586]
[1641959606423,1.21787,3235.8,3235.6,3.91417586]
[1641959607227,4.76342769,3235.8,3235.6,3.91417586]
[1641959607631,1.21787,3235.8,3235.6,3.91417586]
[1641959607827,5.05650046,3235.8,3235.6,3.91417586]
[1641959608227,0.59536063,3235.7,3235.6,3.1]
[1641959608631,1.51787,3235.8,3235.6,3.10568423]
[1641959609030,1.51787,3235.8,3235.7,0.00511581]
[1641959609230,6.32713894,3235.8,3235.7,0.00511581]
[1641959610484,7.47951778,3235.8,3235.7,0.00511581]
[1641959610784,3.97024884,3235.8,3235.7,0.00511581]
[1641959612186,2.81787,3235.8,3235.7,0.00511581]
[1641959614229,6.3298335,3235.8,3235.7,0.00511581]
[1641959614829,2.81787,3235.8,3235.7,0.00511581]
[1641959626280,0.992604,3235.8,3235.7,0.00511581]
[1641959626481,0.692604,3235.8,3235.7,3.20511581]
[1641959627684,0.247604,3235.8,3235.7,3.20511581]
[1641959627883,0.247604,3235.8,3235.7,0.00511581]
[1641959630924,3.74241862,3235.8,3235.7,0.00511581]
[1641959631130,0.247604,3235.8,3235.7,0.00511581]
[1641959633176,1.247604,3235.8,3235.7,0.00511581]
[1641959634280,0.247604,3235.8,3235.7,0.00511581]
[1641959635481,1.247604,3235.8,3235.7,0.00511581]
[1641959635720,5.21144231,3235.8,3235.7,0.00511581]
[1641959635923,1.692604,3235.8,3235.7,0.00511581]
[1641959636326,2.49977262,3235.8,3235.7,0.00511581]
[1641959638934,2.49977262,3235.8,3235.6,3.1]
[1641959639131,3.27263262,3235.8,3235.6,3.1]
[1641959639330,2.27263262,3235.8,3235.6,3.1]
[1641959640573,2.57263262,3235.8,3235.6,3.1]
[1641959640774,2.87263262,3235.8,3235.6,3.1]
[1641959646441,1.49977262,3235.8,3235.7,6.92354224]
[1641959646640,0.692604,3235.8,3235.7,6.92354224]
[1641959646844,0.692604,3235.8,3235.7,3.9]
[1641959647268,0.692604,3235.8,3235.7,4.44956294]
[1641959647471,0.692604,3235.8,3235.7,0.54956294]
[1641959648068,0.692604,3235.8,3235.7,3.14956294]
[1641959649174,0.692604,3235.8,3235.7,0.54956294]
[1641959650178,0.568802,3235.8,3235.7,0.54956294]
[1641959650575,0.445,3235.8,3235.7,0.54956294]
[1641959653231,0.56879,3235.8,3235.7,0.54956294]
[1641959654972,0.56879,3235.8,3235.7,4.07191424]
[1641959655173,0.56879,3235.8,3235.7,12.12191424]
[1641959655174,0.12379,3235.8,3235.7,12.12191424]
[1641959655574,1.11255057,3235.9,3235.8,5.65]
[1641959655977,1.11255057,3235.9,3235.8,5.65454738]
[1641959656779,1.11255057,3235.9,3235.8,6.20409334]
[1641959657479,1.11255057,3235.9,3235.8,9.47378768]
[1641959658327,1.11255057,3235.9,3235.8,6.20409334]
[1641959660628,1.11255057,3235.9,3235.8,0.55409334]
[1641959660831,1.23632357,3235.9,3235.8,0.55409334]
[1641959670784,1.11255057,3235.9,3235.8,0.55409334]
[1641959672684,1.88515427,3235.9,3235.8,0.55409334]
[1641959673930,1.88515427,3235.9,3235.8,3.75409334]
[1641959675535,1.11255057,3235.9,3235.8,3.75409334]
[1641959679389,1.88515707,3235.9,3235.8,0.55409334]
[1641959682037,1.88515707,3235.9,3235.8,0.00454738]
[1641959682433,2.00893407,3235.9,3235.7,0.00511581]
[1641959682632,2.78161407,3235.9,3235.7,0.00511581]
[1641959692673,2.78161407,3235.9,3235.6,2.17701581]
[1641959693987,2.78161407,3235.9,3235.6,1.24891581]
[1641959700277,0.77277,3235.8,3235.6,1.24891581]
[1641959704733,1.43765368,3235.7,3235.6,1.24891581]
[1641959711634,0.77277,3235.8,3235.6,1.24891581]
[1641959714340,1.77277,3235.8,3235.6,1.24891581]
[1641959717483,3.52490519,3235.7,3235.6,1.24891581]
[1641959717785,2.07277,3235.8,3235.6,1.24891581]
[1641959719035,1.07277,3235.8,3235.6,1.24891581]
[1641959729241,5.545,3235.7,3235.6,1.24891581]
[1641959729502,5.545,3235.7,3234.1,3.10361912]
[1641959729503,0.77299,3235.3,3234.1,3.10361912]
[1641959729686,2.31901,3235.1,3234.1,10.66351912]
[1641959729987,0.7730163,3234.9,3234.8,0.00511581]
[1641959730788,2.95160252,3234.9,3234.8,0.00511581]
[1641959731088,2.95160252,3234.9,3234.3,0.00795793]
[1641959731291,1.5460517,3234.6,3234.3,0.00795793]
[1641959732694,2.3190817,3234.6,3234.3,0.00795793]
[1641959732895,2.3190817,3234.6,3234.2,0.84345793]
[1641959733336,0.00113685,3234.5,3234.2,3.796186]
[1641959733540,0.00113685,3234.5,3234.2,0.84345793]
[1641959733938,0.00113685,3234.5,3234.2,3.8027073]
[1641959734937,0.00113685,3234.5,3234.2,3.84604801]
[1641959735140,0.00113685,3234.5,3234.3,2.63633275]
[1641959735338,0.00113685,3234.5,3234.4,2.96304544]
[1641959736740,0.00113685,3234.5,3234.2,3.88968216]
[1641959737182,0.00113685,3234.5,3234.2,0.84345793]
[1641959737381,0.00113685,3234.5,3234.3,2.63632466]
[1641959738388,0.00113685,3234.5,3234.4,2.97584725]
[1641959739188,0.00113685,3234.5,3234.4,6.07584725]
[1641959740836,0.00113685,3234.5,3234.4,3.1]
[1641959745688,0.00113685,3234.5,3234.4,5.7362209]
[1641959746689,0.00113685,3234.5,3234.4,3.1]
[1641959748937,0.00113685,3234.5,3234.4,5.73624924]
[1641959750844,0.00113685,3234.5,3234.4,3.1]
[1641959751443,0.00113685,3234.5,3234.4,5.73627322]
[1641959753085,0.00113685,3234.5,3234.4,4.62320561]
[1641959756438,0.00113685,3234.5,3234.4,3.69469832]
[1641959756641,1.27533461,3234.5,3234.4,3.69469832]
[1641959756839,12.87699353,3234.5,3234.4,9.832e-05]
[1641959757041,12.87699353,3234.5,3233.6,3.95397511]
[1641959757042,0.00630678,3234.3,3233.6,3.95397511]
[1641959757239,0.445,3234.2,3233.5,2.09748483]
[1641959757539,2.52586876,3234.2,3233.7,0.00341054]
[1641959757942,0.77328,3234.0,3233.5,0.5631943]
[1641959758140,1.2182775,3233.9,3233.5,0.5631943]
[1641959758546,1.2182775,3233.9,3233.5,0.5011943]
[1641959759994,1.9915075,3233.9,3233.5,0.5011943]
[1641959761195,2.1153675,3233.9,3233.5,0.5011943]
[1641959762596,2.8886375,3233.9,3233.5,0.5011943]